Cogmind - Beta 16 @@@ ROGUE MODE // 2025.12.27 @ 18:54:57 Player: celerysam Result: Destroyed by G-47 Trooper with Particle Gun Performance ------------- Evolutions (2) 1000 Regions Visited (3) 600 Robots Destroyed (40) 200 Value Destroyed (1124) 1124 Prototype IDs (4) 80 Alien Tech Used (0) 0 Bonus (0) 0 TOTAL SCORE: 3004 Bonus ------- None Cogmind --------- Core Integrity 0/550 Matter 293/300 Energy 24/100 System Corruption 0% Temperature Cool (9) Movement Core (50) Location -8/Materials Parts ------- > --- POWER (1) -------- (None) > --- PROPULSION (4) --- (None) > --- UTILITY (4) ------ (None) > --- WEAPON (2) ------- Katana > --- INVENTORY (5) ---- Improved Ion Engine Light Deuterium Engine Large Storage Unit Improved Terrain Scanner Mining Laser Peak State ------------ > --- POWER ------------ Heavy Ion Engine > --- PROPULSION ------- Wheel Compact Wheel Compact Wheel > --- UTILITY ---------- Improved Heat Sink High-capacity Storage Unit Light Armor Plating Light Armor Plating > --- WEAPON ----------- Improved EM Shotgun Advanced Beam Cannon > --- INVENTORY -------- Improved Ion Engine Cooled Ion Engine Light Deuterium Engine Light Treads Compact Wheel Compact Wheel Compact Wheel Small Storage Unit Large Storage Unit Improved Terrain Scanner Seismic Detector Reaction Control System Beam Rifle Spread Laser Heavy Assault Rifle Autogun Grenade Launcher Mining Laser Hammer Katana [Rating: 21] Favorites ----------- Power Ion Engine Engine Ion Engine Power Core Nuclear Core Propulsion Compact Wheel Treads Light Treads Leg Aluminum Leg Wheel Compact Wheel Utility High-capacity Storage Unit Device Heat Sink Storage High-capacity Storage Unit Hackware System Shield Protection Light Armor Plating Weapon Medium Laser Energy Gun Medium Laser Energy Cannon Advanced Beam Cannon Ballistic Gun Light Assault Rifle Launcher Grenade Launcher Slashing Weapon Katana Build | -11 -10 -9 -8 ------- Run | Yrd Mat Mat Mat Slots Evolved 4 | . . 2 2 Power . | . . . . Propulsion 2 | . . 1 1 Utility 2 | . . 1 1 Weapon . | . . . . Parts Attached 42 | 6 8 15 13 Power 7 | 1 1 1 4 Engine 5 | 1 1 1 2 Core 2 | . . . 2 Reactor . | . . . . Propulsion 15 | 2 3 7 3 Treads 2 | . . 2 . Leg 2 | 2 . . . Wheel 11 | . 3 5 3 Hover . | . . . . Flight . | . . . . Utility 10 | 1 2 3 4 Device 4 | . . 2 2 Storage 3 | 1 2 . . Processor . | . . . . Hackware 1 | . . . 1 Protection 2 | . . 1 1 Artifact . | . . . . Weapon 10 | 2 2 4 2 Energy Gun 4 | 1 1 1 1 Energy Cannon 1 | . . 1 . Ballistic Gun 3 | 1 . 2 . Ballistic Cannon . | . . . . Launcher 1 | . 1 . . Special Weapon . | . . . . Impact Weapon . | . . . . Slashing Weapon 1 | . . . 1 Piercing Weapon . | . . . . Special Melee Weapon . | . . . . Unidentified Prototypes 4 | . . 3 1 Parts Lost 23 | . 3 6 14 Power 3 | . 1 . 2 Propulsion 11 | . 1 4 6 Utility 2 | . . . 2 Weapon 7 | . 1 2 4 Highest Loss Streak 14 | . 2 3 14 To Critical Strikes . | . . . . Average Backups 13 | 4 8 15 18 Power 1 | . . 1 3 Propulsion 3 | 2 4 3 2 Utility 2 | . 1 3 5 Weapon 5 | . 2 7 7 Tool/Special . | . . . . Unused Backups 12 | . . 1 11 Power 2 | . . . 2 Propulsion . | . . . . Utility 2 | . . . 2 Weapon 7 | . . 1 6 Tool/Special 1 | . . . 1 Average Slot Usage (%) 79 | . 81 79 78 Engine 9 | . 12 11 4 Treads 3 | . . 6 . Wheel 21 | . 23 19 22 Device 7 | . . 8 14 Storage 11 | . 14 11 8 Protection 2 | . . 1 8 Energy Gun 9 | . 12 9 8 Energy Cannon 1 | . . . 7 Ballistic Gun 9 | . 14 11 . Peak Build Rating 21 | 6 6 20 21 Average Rating 11 | 4 5 10 19 On Entrance 8 | . 6 6 20 Avg Prop Armor Cover (%) 10 | . . 10 . Naked Turns . | . . . . Heaviest Build 62 | 11 48 59 62 Greatest Support 42 | 20 32 42 42 Greatest Overweight (x) 17 | . 1 5 17 Average Overweight (x) 1 | . . 2 1 Largest Inventory Capacity 20 | 8 20 20 20 Average Capacity 17 | 6 14 20 19 Most Carried 20 | 6 10 20 20 Average Carried 13 | 5 8 15 19 Final Capacity 20 | 8 20 20 5 Final Carried 20 | 6 9 20 5 Class Distribution -------------------- 93% | Mutant 6% | Scavenger-Mutant Dominant Class ---------------- Mutant | -10/Materials Mutant | -9/Materials Mutant | -8/Materials Resources | -11 -10 -9 -8 ----------- Run | Yrd Mat Mat Mat Matter Collected 867 | 214 65 376 212 Remotely . | . . . . Salvage Created 1436 | . 245 755 436 Parts 91 | . 19 46 26 Haulers Intercepted 4 | . 1 3 . Recyclers Shooed 1 | . . . 1 Parts Field Recycled . | . . . . Retrieved Matter . | . . . . Parts Self-Destructed . | . . . . Prevented . | . . . . Parts Restored . | . . . . Kills | -11 -10 -9 -8 ------- Run | Yrd Mat Mat Mat Combat Hostiles Destroyed 33 | . 9 13 11 Melee 1 | . . . 1 Guns 20 | . 4 13 3 Cannons 6 | . . . 6 AOE 5 | . 4 . 1 Classes Destroyed 9 | . 5 3 1 Worker 1 | . 1 . . Hauler 4 | . 1 3 . Recycler 1 | . 1 . . Watcher 1 | . . 1 . Swarmer 12 | . 8 . 4 Grunt 11 | . 1 7 3 Duelist 2 | . . 1 1 Sentry 7 | . . 5 2 Hunter 1 | . . . 1 Best Kill Streak 7 | . 7 6 4 Combat Bots Only 6 | . 5 6 4 Max Kills in Single Turn 4 | . 4 1 1 Gunslinging . | . . . . Exploded 2 | . 2 . 1 Melee 1 | . . . 1 Uniques/NPCs Destroyed . | . . . . Combat | -11 -10 -9 -8 -------- Run | Yrd Mat Mat Mat Hostile Shots Fired 275 | . 63 88 124 Missed 83 | . 18 30 35 Hits 192 | . 45 58 89 Melee 2 | . . 1 1 Projectile 190 | . 45 57 88 Critical Strikes 6 | . . . 6 Damage Taken 2935 | . 459 808 1668 Core 841 | . 116 162 563 Absorbed by Shields . | . . . . Core Remaining (%) 70 | 100 53 59 . Volleys Fired 109 | . 25 55 29 Largest 2 | . 2 2 2 Hottest 133 | . 70 113 133 Shots Fired 202 | . 49 97 56 Gun 173 | . 46 96 31 Cannon 26 | . . 1 25 Launcher 3 | . 3 . . Special . | . . . . Kinetic 86 | . 25 58 3 Thermal 87 | . 16 38 33 Explosive 3 | . 3 . . Electromagnetic 26 | . 5 1 20 Robot Hit Streak 23 | . 4 23 9 Robot Miss Streak 6 | . 2 2 6 Penetration Max . | . . . . Secondary Targets 2 | . . 2 . Max Gunslinging Chain 1 | . . 1 . Shots Hit Robots 150 | . 28 79 43 Core Hits 72 | . 15 35 22 Critical Kills . | . . . . Critical Parts Destroyed . | . . . . Critical Strikes 2 | . 1 1 . Burn 2 | . 1 1 . Melee Attacks 1 | . . . 1 Impact . | . . . . Slashing 1 | . . . 1 Piercing . | . . . . Sneak Attacks . | . . . . Combat Hostiles . | . . . . Follow-up Attacks . | . . . . Damage Inflicted 3285 | . 1270 1153 862 Guns 1851 | . 304 1153 394 Cannons 351 | . . . 351 Explosions 1054 | . 966 . 88 Melee 29 | . . . 29 Ramming . | . . . . Kinetic 860 | . 131 717 12 Thermal 1748 | . 782 398 568 Explosive 334 | . 334 . . Electromagnetic 314 | . 23 38 253 Impact . | . . . . Slashing 29 | . . . 29 Piercing . | . . . . Highest Corruption . | . . . . Average Corruption . | . . . . Corruption Purged . | . . . . Corruption Blocked . | . . . . Overload Shots . | . . . . Overflow Damage 97 | . 97 . . Projectiles . | . . . . Explosions 97 | . 97 . . Melee . | . . . . Knockbacks . | . . . . Impact . | . . . . Kinetic . | . . . . Secondary . | . . . . Self-Inflicted Damage 112 | . 73 . 39 Shots 3 | . 2 . 1 Rammed . | . . . . Targets Rammed . | . . . . Kicked . | . . . . Crushed . | . . . . Highest Temperature 116 | . 116 60 72 Average Temperature 26 | . 51 13 17 Received Heat Transfer 900 | . 72 351 477 Siege Activations . | . . . . Martial Activations . | . . . . Shielding Activations . | . . . . Robots Disrupted . | . . . . Combat Hostiles . | . . . . Robots Corrupted . | . . . . Combat Hostiles . | . . . . Parts Fried . | . . . . Impact Corruptions . | . . . . Robots Melted 1 | . 1 . . Combat Hostiles 1 | . 1 . . Parts Melted . | . . . . Heat Transferred 3060 | . 918 1258 884 Parts Sabotaged . | . . . . Parts Stolen . | . . . . Parts Stripped . | . . . . Power Chain Reactions 2 | . . . 2 Alert | -11 -10 -9 -8 ------- Run | Yrd Mat Mat Mat Maximum Alert Level 1 | . 1 . 1 Low Security (%) 81 | 100 18 100 98 Level 1 18 | . 81 . 1 Level 2 . | . . . . Level 3 . | . . . . Level 4 . | . . . . Level 5 . | . . . . High Security . | . . . . Max Security . | . . . . Peak Influence 387 | . 387 163 208 Initial 163 | . . 163 51 Average 120 | . 264 79 111 Influence Increases 1194 | . 547 370 277 Destroy 0b10 Robot/C 660 | . 180 260 220 Destroy 0b10 Robot/NC 35 | . 15 20 . Destroy Leader 170 | . 32 88 50 Successful Hack 2 | . . 2 . Disable Machine 105 | . 105 . . Destroy Structure 57 | . 50 . 7 Lose Combat Pursuer 165 | . 165 . . Influence Decreases 1146 | . 160 634 352 Entered New Map 296 | . . 224 72 Time Decay 554 | . 130 284 140 Lost Part 200 | . 30 30 140 Purge Threat 96 | . . 96 . Squads Dispatched 2 | . 1 . 1 Investigation . | . . . . Extermination . | . . . . Reinforcement 2 | . 1 . 1 Assault . | . . . . Garrison . | . . . . Intercept . | . . . . Searches Triggered . | . . . . Construction Impeded . | . . . . Haulers Reinforced . | . . . . Active Scanning Responses . | . . . . Cargo Convoy Interrupts . | . . . . Stealth | -11 -10 -9 -8 --------- Run | Yrd Mat Mat Mat Distress Signals 7 | . . 4 3 Communications Jammed . | . . . . Distress Signals . | . . . . Times Spotted 63 | . 22 20 21 Peak Tracking Total 10 | . 5 6 10 Tactical Retreats 12 | . 9 . 3 ECM-based Alert Blocks 6 | . . . 6 Traps | -11 -10 -9 -8 ------- Run | Yrd Mat Mat Mat Traps Triggered . | . . . . Indirectly . | . . . . Trap Hack Attempts . | . . . . Triggered . | . . . . Disarmed . | . . . . Reprogrammed . | . . . . Reused . | . . . . Traps Extracted . | . . . . Installed . | . . . . Triggered . | . . . . Machines | -11 -10 -9 -8 ---------- Run | Yrd Mat Mat Mat Machines Disabled 7 | . 7 . . Max in Single Turn 6 | . 6 . . Machines Repaired . | . . . . Machines Dismantled . | . . . . Machines Sabotaged . | . . . . Overloaded Fab Kills . | . . . . Hacking | -11 -10 -9 -8 --------- Run | Yrd Mat Mat Mat Machines Accessed 2 | . . 2 . Terminals 1 | . . 1 . Fabricators . | . . . . Repair Stations . | . . . . Recycling Units . | . . . . Scanalyzers 1 | . . 1 . Garrison Access . | . . . . Total Hacks 5 | . . 5 . Successful 2 | . . 2 . Failed 2 | . . 2 . Catastrophic . | . . . . Database Lockouts 1 | . . 1 . Manual . | . . . . Terminals 1 | . . 1 . Fabricators . | . . . . Repair Stations . | . . . . Recycling Units . | . . . . Scanalyzers 4 | . . 4 . Garrison Access . | . . . . Terminal Hacks 1 | . . 1 . Unreport Threat 1 | . . 1 . Fabricator Hacks . | . . . . Repair Station Hacks . | . . . . Recycling Unit Hacks . | . . . . Scanalyzer 1 | . . 1 . Retrieve Study 1 | . . 1 . Garrison Access Hacks . | . . . . Unauthorized Hacks . | . . . . Terminals . | . . . . Fabricators . | . . . . Repair Stations . | . . . . Recycling Units . | . . . . Scanalyzers . | . . . . Garrison Access . | . . . . Data Cores Recovered . | . . . . Used . | . . . . Hacking Detections 1 | . . 1 . Full Trace Events . | . . . . Feedback Events . | . . . . Feedback Blocked . | . . . . Robot Schematics Acquired . | . . . . Robots Built . | . . . . Authchips . | . . . . Time . | . . . . Total Robot Build Rating . | . . . . Part Schematics Acquired . | . . . . Parts Built . | . . . . Authchips . | . . . . Time . | . . . . Total Part Build Rating . | . . . . Part Studies Acquired 1 | . . 1 . Parts Repaired . | . . . . Time . | . . . . Parts Recycled . | . . . . Recycled Matter . | . . . . Retrieved Matter . | . . . . Retrieved Components . | . . . . Parts Scanalyzed . | . . . . Part Schematics Acquired . | . . . . Parts Damaged . | . . . . Bothacking | -11 -10 -9 -8 ------------ Run | Yrd Mat Mat Mat Used RIF Installer . | . . . . Robots Hacked . | . . . . Non-combat . | . . . . Combat . | . . . . Robot Hacks Applied . | . . . . Relay Couplers Released . | . . . . Fabnet Peak Effective % . | . . . . Robots Rewired . | . . . . Allies Hacked . | . . . . Hacks Repelled . | . . . . Allies | -11 -10 -9 -8 -------- Run | Yrd Mat Mat Mat Total Allies . | . . . . Largest Group . | . . . . Highest-Rated Group . | . . . . Highest-Rated Ally . | . . . . Total Orders . | . . . . Ally Attacks . | . . . . Total Damage . | . . . . Kills . | . . . . Allies Corrupted . | . . . . Allies Melted . | . . . . Intel | -11 -10 -9 -8 ------- Run | Yrd Mat Mat Mat Active Infowar (turns) 172 | . . . 172 ECM 172 | . . . 172 Robot Analysis Total . | . . . . Derelict Logs Recovered . | . . . . Drone Launches . | . . . . Drone Recoveries . | . . . . Exploration | -11 -10 -9 -8 ------------- Run | Yrd Mat Mat Mat Turns Passed 1459 | 91 316 768 284 Spaces Moved 912 | 71 217 458 166 Core 23 | 13 . . 10 Treads 24 | . . 24 . Legs 84 | 58 26 . . Wheels 781 | . 191 434 156 Hover . | . . . . Flight . | . . . . Fastest Speed 50 | 50 90 101 50 Average Speed 114 | 107 99 125 103 Slowest Speed 900 | 120 120 240 900 Overloaded Moves . | . . . . Propulsion Burnouts . | . . . . Robots Hopped . | . . . . Potential Cave-ins . | . . . . Cave-ins Triggered . | . . . . Exploration Rate (%) 33 | 5 68 37 22 Regions Visited 3 Branch Regions . Pre-discovered Areas . | . . . . Known Exits Taken . | . . . . Unknown Exits Taken 3 | 1 1 1 . Scrap Searched . | . . . . Spaces Dug . | . . . . Terrain Destroyed 60 | . 53 . 7 Melee . | . . . . Projectile . | . . . . AOE 60 | . 53 . 7 Terrain Rammed . | . . . . Walls Destroyed . | . . . . Machines Disabled . | . . . . Actions | -11 -10 -9 -8 --------- Run | Yrd Mat Mat Mat Total 1139 | 83 269 562 225 Wait 17 | . 13 3 1 Move 909 | 70 216 457 166 Hop . | . . . . Pick Up 43 | 7 6 24 6 Fast Attach 10 | 5 . 1 4 Attach 21 | 1 3 9 8 Detach . | . . . . Swap 15 | . 6 6 3 Drop 14 | . . 7 7 Fire 109 | . 25 55 29 Melee 1 | . . . 1 Ram . | . . . . Kick . | . . . . Crush . | . . . . Escape Stasis . | . . . . Rewire . | . . . . Trap . | . . . . Miscellaneous . | . . . . Route ------- -11/Scrapyard -10/Materials (discovered 3 exits: *Mat / [*Min x2]) -9/Materials -8/Materials History --------- Turn | Location | Event 13 | -11/Scrapyard | Discovered new exit (range 15) 92 | -11/Scrapyard | Entered Materials 156 | -10/Materials | Discovered new exit (range 12) 274 | -10/Materials | Discovered new exit (range 15) 315 | -10/Materials | Build established: Mutant 384 | -10/Materials | Discovered new exit (range 11) 408 | -10/Materials | Entered another Materials area 408 | -9/Materials | Evolved 2 slots: Propulsion x1, Utility x1 741 | -9/Materials | Central database locked down 1040 | -9/Materials | Lost 3 parts (2n1w) 1143 | -9/Materials | Discovered new exit (range 16) 1176 | -9/Materials | Entered another Materials area 1176 | -8/Materials | Evolved 2 slots: Propulsion x1, Utility x1 1429 | -8/Materials | Core integrity fell below 50% 1451 | -8/Materials | Released all parts (5) 1456 | -8/Materials | Core integrity fell below 20% 1460 | -8/Materials | Destroyed by G-47 Trooper with Particle Gun Last Messages --------------- 01441_ Knocked back. 01446_ U-05 Engineer builds a Wall. 01446_ M-13 Machinist repairs H-61 Shepherd. 01447_ Autogun destroyed. 01447_ Spread Laser destroyed. 01447_ Cld. Ion Engine destroyed. 01450_ K-01 Serf destroyed. 01451_ Released Imp. Heat Sink. 01451_ Released Hcp. Storage Unit. 01451_ Released ECM Suite. 01451_ Released System Shield. 01451_ Released Katana. 01451_ Acquired Reaction Control System. 01453_ Acquired 5 matter. 01454_ Acquired Katana. [Achievement: Hydra] 01455_ Reaction Control System destroyed. 01455_ Critical hit (Burn: +37). 01458_ G-47 Trooper destroyed. 01460_ Acquired 40 matter. Map ----- +----------------------------------------------------+ | ????????????????# ## ==## # """ """ #????? | | ????????????????######### ## # #????? | | ????????????????????????####### # #????? | | ??????????????????????????????# # ] #????? | | ??????????????????????????????# # [ #????? | | ??????????????????????????????# ########+##????? | | ??????????????????????????????# #??????# #?????? | | ??????????????????????????????# ########+##????? | | ????????????????????########### # #????? | | ????????????????????# * # # #????? | | ????????????????????# # # #????? | | ????????????????????# # #= #????? | | ????????????????????# / [[/%= #????? | | ????????????????????# # =#* """"" #????? | | ????????????????????# """ """ # # """"" #????? | | ????????????????????# """ """ # # """"" #????? | | ????????????????????# """ """ # ###########????? | | ??????????????????############# #??????????????? | | ??????????????????# """ "" # #??????????????? | | ??????????????????# """"" " " + #??????????????? | | ??????????????????# " !Y # #??????????????? | | ??????????????????# /! ]% # #??????????????? | | ??????????????????# ! !== # #??????????????? | | ??????????????????# !%Y%[ # #??????????????? | | ??????????????????# /g%!%# #??????????????? | | ??????????????????######;@*#### #??????????????? | | ???????????????????????#;=##### #??????????????? | | ???????????????????????#!gk #??????????????? | | ???????????????????????# #??????????????? | | ???????????????????????#g g #??????????????? | | ???????????????????????# H #### #??????????????? | | ???????????????????????# ##?? #??????????????? | | ???????????????????????# ##?? #??????????????? | | ???????????????????????# ##?? #??????????????? | | ???????????????????????# #?????????????????????? | | ???????????????????????# #?????????????????????? | | ???????????????????????# #?????????????????????? | | ??????????????????????? ?????????????????????? | | ??????????????????????? ?????????????????????? | | ?????????????????????? ?????????????????????? | | ?????????????????????? ?????????????????????? | | ??????????????????????# ?????????????????????? | | ??????????????????????######?????????????????????? | | ?????????????????????????????????????????????????? | | ?????????????????????????????????????????????????? | | ?????????????????????????????????????????????????? | | ?????????????????????????????????????????????????? | | ?????????????????????????????????????????????????? | | ?????????????????????????????????????????????????? | | ?????????????????????????????????????????????????? | +----------------------------------------------------+ Best States ------------- Heat Dissipation 45 Energy Generation 14 Energy Capacity 280 Matter Stores 300 Matter Capacity 300 Sight Range 16 Terrain Scan Density 10 ECM Strength 1 Armor Coverage 300 Evasion (%) 55 Recoil Reduction 2 Item Schematics ----------------- None Robot Schematics ------------------ None Fabricated ------------ Nothing Repaired ---------- Nothing Studied --------- Com. Wheel | -9/Materials | Hacked Alien Tech Used ----------------- None Achievements -------------- Hydra Challenges ------------ None Game ------ Seed LaunchFusionBoomstick Manual? 0 Play Time 00:15:04 Cumulative 280.5 hours Start 2025.12.27 @ 18:40:13 End 2025.12.27 @ 18:54:57 Sessions 1 Manual Loads 0 Difficulty Rogue Special Mode None Game No. 447 Rogue 447 Adventurer 0 Explorer 0 Win Type - Total 1 Types 1/0/0/0/0/0/0/0/0/0 Lore% 65 Gallery% 62 Achievement% 30 Wizard Run 0 Options --------- Layout 1 ASCII 0 Keyboard 0 Movement Mouse Keybinds 0 Fullscreen 2 Font 24/Smallcaps Map View 50x35 Zoom Use 0% Tactical HUD 1 Map Filters NONE Filters NONE Steam 1 RUN: 46bd2b5e-7e23-4ad6-9427-37114589d6ac